bitfinex/quotes_BTCUSD_20240717
["timestamp","ask_amount","ask_price","bid_price","bid_amount"]
[1721205648804,2.10278252,65475.0,65469.0,0.009196]
[1721205649156,2.07478252,65475.0,65469.0,0.009196]
[1721205649384,2.08878252,65475.0,65469.0,0.009196]
[1721205649581,2.20285973,65475.0,65469.0,0.009196]
[1721205649741,2.20294236,65475.0,65469.0,0.009196]
[1721205649954,1.871007,65472.0,65469.0,0.009196]
[1721205650136,2.29524335,65472.0,65469.0,0.009196]
[1721205650411,2.29524335,65472.0,65451.0,0.009196]
[1721205650412,0.202755,65464.0,65451.0,0.009196]
[1721205650555,1.37312437,65464.0,65451.0,0.009196]
[1721205650760,1.77863537,65464.0,65451.0,0.009196]
[1721205650980,1.80163537,65464.0,65451.0,0.009196]
[1721205651185,1.8277335,65464.0,65451.0,0.009196]
[1721205651399,1.7777335,65464.0,65451.0,0.009196]
[1721205651647,1.7917335,65464.0,65451.0,0.009196]
[1721205652217,1.8277335,65464.0,65451.0,0.009196]
[1721205652418,2.1332445,65464.0,65451.0,0.009196]
[1721205652634,2.2087445,65464.0,65451.0,0.009196]
[1721205652775,1.92667871,65464.0,65451.0,0.009196]
[1721205653349,2.00197871,65464.0,65451.0,0.009196]
[1721205653710,2.01597871,65464.0,65451.0,0.009196]
[1721205653891,2.00197871,65464.0,65451.0,0.009196]
[1721205654726,1.98797871,65464.0,65451.0,0.009196]
[1721205654887,2.00197871,65464.0,65451.0,0.009196]
[1721205655753,2.32148971,65464.0,65451.0,0.009196]
[1721205656208,2.064151,65452.0,65451.0,0.009196]
[1721205656401,2.34102343,65452.0,65451.0,0.009196]
[1721205656600,2.44102343,65452.0,65451.0,0.009196]
[1721205656828,2.46402343,65452.0,65451.0,0.009196]
[1721205657030,2.409151,65452.0,65451.0,0.009196]
[1721205658069,2.47309307,65452.0,65451.0,0.009196]
[1721205658251,2.423151,65452.0,65451.0,0.009196]
[1721205658656,2.437151,65452.0,65451.0,0.009196]
[1721205659082,2.423151,65452.0,65451.0,0.009196]
[1721205659291,2.437151,65452.0,65451.0,0.009196]
[1721205659722,2.423151,65452.0,65451.0,0.009196]
[1721205660227,2.373151,65452.0,65451.0,0.009196]
[1721205660733,2.387151,65452.0,65451.0,0.009196]
[1721205660900,2.373151,65452.0,65451.0,0.009196]
[1721205661100,2.423151,65452.0,65451.0,0.009196]
[1721205661814,2.437151,65452.0,65451.0,0.009196]
[1721205662302,2.451151,65452.0,65451.0,0.009196]
[1721205662502,2.728718,65452.0,65451.0,0.009196]
[1721205663130,2.742718,65452.0,65451.0,0.009196]
[1721205663847,2.756718,65452.0,65451.0,0.009196]
[1721205664015,2.728718,65452.0,65451.0,0.009196]
[1721205664224,3.08449014,65452.0,65451.0,0.009196]
[1721205664430,3.12240374,65452.0,65451.0,0.009196]
[1721205664645,3.09849014,65452.0,65451.0,0.009196]
[1721205664794,3.12240509,65452.0,65451.0,0.009196]
[1721205665831,3.13640509,65452.0,65451.0,0.009196]
[1721205666053,3.12240509,65452.0,65451.0,1e-06]
[1721205666424,3.13640509,65452.0,65451.0,1e-06]
[1721205666636,3.12240509,65452.0,65451.0,1e-06]
[1721205667028,3.13640509,65452.0,65451.0,1e-06]
[1721205667373,3.13654054,65452.0,65451.0,1e-06]
[1721205667543,3.12254054,65452.0,65451.0,1e-06]
[1721205667951,3.13654054,65452.0,65451.0,1e-06]
[1721205668205,3.11262559,65452.0,65451.0,1e-06]
[1721205668561,3.09862559,65452.0,65451.0,1e-06]
[1721205668759,3.11262559,65452.0,65451.0,1e-06]
[1721205669384,3.11262559,65452.0,65444.0,0.009185]
[1721205669594,1.0084,65445.0,65444.0,0.009185]
[1721205669918,1.47834059,65445.0,65444.0,0.009185]
[1721205670122,1.47834059,65445.0,65437.0,0.009196]
[1721205670123,0.508421,65442.0,65437.0,0.009196]
[1721205670445,1.89521759,65442.0,65437.0,0.009196]
[1721205670682,1.619712,65438.0,65437.0,0.009196]
[1721205670891,2.70513024,65438.0,65437.0,0.009196]
[1721205671094,2.640776,65438.0,65437.0,0.009196]
[1721205671299,2.70515647,65438.0,65437.0,0.009196]
[1721205671522,3.01078847,65438.0,65437.0,0.009196]
[1721205671740,1.731003,65437.0,65436.0,0.009196]
[1721205671935,1.91838347,65437.0,65436.0,0.009196]
[1721205672352,2.22397501,65437.0,65436.0,0.009196]
[1721205672763,2.22397501,65437.0,65436.0,1e-06]
[1721205673365,2.26709679,65437.0,65436.0,1e-06]
[1721205673566,2.22397501,65437.0,65436.0,1e-06]
[1721205673684,2.15964,65437.0,65436.0,1e-06]
[1721205673889,2.22448676,65437.0,65436.0,1e-06]
[1721205674308,2.23848676,65437.0,65436.0,1e-06]
[1721205674537,2.20248676,65437.0,65436.0,1e-06]
[1721205674707,2.25248676,65437.0,65436.0,1e-06]
[1721205675429,2.25248676,65437.0,65429.0,0.009196]
[1721205675430,1.619827,65431.0,65429.0,0.009196]
[1721205675628,1.86977376,65431.0,65429.0,0.009196]
[1721205675838,1.86977376,65431.0,65416.0,0.0628]
[1721205675839,1.86977376,65431.0,65426.0,1e-06]
[1721205675840,0.508526,65427.0,65426.0,1e-06]
[1721205676013,1.50674076,65427.0,65426.0,1e-06]
[1721205676214,1.83542476,65427.0,65426.0,1e-06]
[1721205676713,2.14110876,65427.0,65426.0,1e-06]
[1721205677059,2.48966866,65427.0,65426.0,1e-06]
[1721205677479,2.32830066,65427.0,65426.0,1e-06]
[1721205677602,2.28517888,65427.0,65426.0,1e-06]
[1721205677801,2.33517888,65427.0,65426.0,1e-06]
[1721205678212,2.59086288,65427.0,65426.0,1e-06]
[1721205678460,2.60486288,65427.0,65426.0,1e-06]
[1721205678659,2.34979997,65427.0,65426.0,1e-06]
[1721205678862,2.33517888,65427.0,65426.0,1e-06]
[1721205679039,2.28517888,65427.0,65426.0,1e-06]
[1721205679259,2.39979997,65427.0,65426.0,1e-06]
[1721205679458,2.70548397,65427.0,65426.0,1e-06]
[1721205679662,2.71948397,65427.0,65426.0,1e-06]
[1721205680057,2.71996534,65427.0,65426.0,1e-06]
[1721205680616,2.66934185,65427.0,65426.0,1e-06]
[1721205680790,2.72954185,65427.0,65426.0,1e-06]
[1721205681001,2.71554185,65427.0,65426.0,1e-06]
[1721205681422,2.72954185,65427.0,65426.0,1e-06]
[1721205681589,2.72941637,65427.0,65426.0,1e-06]
[1721205681790,2.78078746,65427.0,65426.0,1e-06]
[1721205681990,2.88241097,65427.0,65426.0,1e-06]
[1721205682393,2.98130415,65427.0,65426.0,1e-06]
[1721205682597,2.88241097,65427.0,65426.0,1e-06]
[1721205683023,2.98155738,65427.0,65426.0,1e-06]
[1721205683362,2.88227921,65427.0,65426.0,1e-06]
[1721205683895,1.375956,65409.0,65407.0,0.0802]
[1721205684102,1.597956,65409.0,65407.0,0.0802]
[1721205684303,1.697956,65409.0,65407.0,0.0802]
[1721205684650,1.720956,65409.0,65407.0,0.0802]
[1721205685403,1.734956,65409.0,65407.0,0.0802]
[1721205685637,1.720956,65409.0,65407.0,0.0802]
[1721205685840,1.748956,65409.0,65407.0,0.0802]
[1721205687067,1.734956,65409.0,65407.0,0.0802]
[1721205687476,1.748956,65409.0,65407.0,0.0802]
[1721205689751,1.748956,65409.0,65399.0,0.0819]
[1721205689752,2.15609509,65409.0,65399.0,0.0819]
[1721205689926,2.22041274,65409.0,65399.0,0.1441]
[1721205690116,2.15609509,65409.0,65399.0,0.1441]
[1721205690319,2.30792143,65409.0,65397.0,0.009196]
[1721205690518,2.28399393,65409.0,65397.0,0.009196]
[1721205690722,2.38602325,65409.0,65397.0,0.009196]
[1721205690928,2.69179125,65409.0,65397.0,0.009196]
[1721205691137,3.17159125,65409.0,65408.0,1e-06]
[1721205691337,1.682004,65398.0,65397.0,0.009196]
[1721205691564,2.09169458,65398.0,65397.0,0.009196]
[1721205691954,2.14169458,65398.0,65397.0,0.009196]
[1721205692161,2.20459458,65398.0,65397.0,0.009196]
[1721205692972,2.21902182,65398.0,65397.0,0.009196]
[1721205693841,2.52484082,65398.0,65397.0,0.009196]
[1721205694253,2.54877337,65398.0,65397.0,0.009196]
[1721205694801,2.54877337,65398.0,65397.0,1e-06]
[1721205695018,1.732312,65386.0,65385.0,0.009196]
[1721205695236,2.077312,65386.0,65385.0,0.009196]
[1721205695474,2.077312,65386.0,65374.0,0.0146526]
[1721205695475,1.070744,65375.0,65374.0,0.0146526]
[1721205695910,1.070744,65375.0,65374.0,0.1585526]
[1721205696121,1.170744,65375.0,65374.0,0.1585526]
[1721205696324,1.476671,65375.0,65374.0,0.0146526]
[1721205696807,1.782598,65375.0,65374.0,0.0146526]
[1721205698001,1.790598,65375.0,65374.0,0.0146526]
[1721205698266,1.79635495,65375.0,65374.0,0.0146526]
[1721205698483,1.81935495,65375.0,65374.0,0.0146526]
[1721205698706,1.52442795,65375.0,65374.0,0.0930526]
[1721205698936,1.50142795,65375.0,65374.0,0.0146526]
[1721205699413,2.02855495,65375.0,65374.0,0.0146526]
[1721205699643,2.0927492,65375.0,65374.0,0.0146526]
[1721205700692,2.0780376,65375.0,65374.0,0.0146526]
[1721205701121,2.0920376,65375.0,65374.0,0.0146526]
[1721205701328,2.3839646,65375.0,65374.0,0.0146526]
[1721205701701,2.4480376,65375.0,65374.0,0.0146526]
[1721205701909,1.49242795,65375.0,65374.0,0.0146526]
[1721205702507,1.47842795,65375.0,65374.0,0.0146526]
[1721205703095,1.17250095,65375.0,65374.0,0.0146526]
[1721205703329,0.15471995,65375.0,65374.0,0.1553526]
[1721205703541,0.00175695,65375.0,65374.0,0.1553526]
[1721205703741,0.00175695,65375.0,65374.0,0.3083186]
[1721205703954,0.02975695,65375.0,65374.0,0.3083186]
[1721205704151,0.01575695,65375.0,65374.0,0.6142506]
[1721205704563,0.01575695,65375.0,65374.0,0.1553526]
[1721205704774,0.02775695,65375.0,65374.0,0.1553526]
[1721205704972,0.47264695,65375.0,65374.0,0.1553526]
[1721205705193,0.77857395,65375.0,65374.0,0.1553526]
[1721205705431,1.07250095,65375.0,65374.0,0.1553526]
[1721205705880,1.07650095,65375.0,65374.0,0.1553526]
[1721205706559,1.17650095,65375.0,65374.0,0.1562766]
[1721205707356,1.18450095,65375.0,65374.0,0.1562766]
[1721205707729,1.18050095,65375.0,65374.0,0.0911766]
[1721205707938,1.19050095,65375.0,65374.0,0.0911766]
[1721205708541,1.19050095,65375.0,65374.0,0.0155766]
[1721205708542,1.49642795,65375.0,65374.0,0.0155766]
[1721205709541,1.48642795,65375.0,65374.0,0.0155766]
[1721205710160,1.47842795,65375.0,65374.0,0.0155766]
[1721205710570,1.54242795,65375.0,65374.0,0.0155766]
[1721205711225,1.49242795,65375.0,65374.0,0.0155766]
[1721205711426,1.55633337,65375.0,65374.0,0.0155766]
[1721205711637,1.57033337,65375.0,65374.0,0.0155766]
[1721205712076,1.50642795,65375.0,65374.0,0.0155766]
[1721205712283,1.49242795,65375.0,65374.0,0.0155766]
[1721205712530,1.55587383,65375.0,65374.0,0.0155766]
[1721205712931,1.91180083,65375.0,65374.0,0.0155766]
[1721205713708,1.89780083,65375.0,65374.0,0.0155766]
[1721205714128,1.91180083,65375.0,65374.0,0.0155766]
[1721205714338,1.9120083,65375.0,65374.0,0.0155766]
[1721205714512,1.9260083,65375.0,65374.0,0.0155766]
[1721205714974,1.8980083,65375.0,65374.0,0.0155766]
[1721205715109,1.9350083,65375.0,65374.0,0.0155766]
[1721205715307,1.9490083,65375.0,65374.0,0.0155766]
[1721205715514,1.9210083,65375.0,65374.0,0.0155766]
[1721205715926,1.9490083,65375.0,65374.0,0.0155766]
[1721205716720,2.2648772,65375.0,65374.0,0.0155766]
[1721205716928,2.2648772,65375.0,65374.0,6e-07]
[1721205717555,2.2780892,65375.0,65374.0,6e-07]
[1721205717766,2.2140892,65375.0,65374.0,6e-07]
[1721205717969,1.8842203,65375.0,65374.0,6e-07]
[1721205718184,1.5922933,65375.0,65374.0,6e-07]
[1721205718384,1.5552933,65375.0,65374.0,6e-07]
[1721205718592,1.5692933,65375.0,65374.0,6e-07]
[1721205718797,1.5832933,65375.0,65374.0,6e-07]
[1721205718955,1.5552933,65375.0,65374.0,6e-07]
[1721205719579,1.5412933,65375.0,65374.0,6e-07]
[1721205719937,1.5552933,65375.0,65374.0,6e-07]
[1721205720142,1.2633663,65375.0,65374.0,6e-07]
[1721205720542,1.2511444,65375.0,65374.0,6e-07]
[1721205720858,1.20050095,65375.0,65374.0,6e-07]
[1721205721087,1.18650095,65375.0,65374.0,6e-07]
[1721205721484,1.20050095,65375.0,65374.0,6e-07]
[1721205721728,1.18650095,65375.0,65374.0,6e-07]
[1721205722568,1.20050095,65375.0,65374.0,6e-07]
[1721205723171,1.18650095,65375.0,65374.0,6e-07]
[1721205723536,1.26482922,65375.0,65374.0,6e-07]
[1721205723737,1.26482922,65375.0,65374.0,0.0808006]
[1721205723738,1.20050095,65375.0,65374.0,0.0808006]
[1721205723940,0.89457395,65375.0,65374.0,0.1419006]
[1721205724343,0.58864695,65375.0,65374.0,0.1419006]
[1721205724721,0.18271995,65375.0,65374.0,0.1419006]
[1721205725129,0.18271995,65375.0,65374.0,0.1505159]
[1721205725337,0.00175695,65375.0,65374.0,0.1505159]
[1721205725536,0.15471995,65375.0,65374.0,0.1505159]
[1721205725769,0.16871995,65375.0,65374.0,0.1505159]
[1721205726271,0.10175695,65375.0,65374.0,0.1505159]
[1721205726687,0.10175695,65375.0,65374.0,0.3034819]
[1721205726688,0.12875695,65375.0,65374.0,0.3034819]
[1721205727113,0.12875695,65375.0,65374.0,0.6094139]
[1721205727114,0.02875695,65375.0,65374.0,0.6094139]
[1721205727554,0.00175695,65375.0,65374.0,0.6094139]
[1721205727957,0.00675695,65375.0,65374.0,0.6094139]
[1721205728160,0.00675695,65375.0,65374.0,0.9153459]
[1721205728370,0.00175695,65375.0,65374.0,0.9153459]
[1721205728790,0.00475695,65375.0,65374.0,0.9153459]
[1721205729204,0.01275695,65375.0,65374.0,0.9153459]
[1721205729351,0.01275695,65375.0,65374.0,0.1505159]
[1721205729556,0.00475695,65375.0,65374.0,0.1505159]
[1721205729975,0.00175695,65375.0,65374.0,0.1515159]
[1721205730200,0.00175695,65375.0,65374.0,0.6104139]
[1721205730338,0.00175695,65375.0,65374.0,0.9173459]
[1721205730339,0.00275695,65375.0,65374.0,0.9173459]
[1721205730539,0.00275695,65375.0,65374.0,0.1505159]
[1721205730833,0.00275695,65375.0,65374.0,0.3034819]
[1721205731014,0.00275695,65375.0,65374.0,0.1515159]
[1721205731303,0.00175695,65375.0,65374.0,0.1505159]
[1721205731481,0.00375695,65375.0,65374.0,0.1505159]
[1721205731679,0.00375695,65375.0,65374.0,0.1515159]
[1721205732083,0.00375695,65375.0,65374.0,0.3044819]
[1721205732507,0.00175695,65375.0,65374.0,0.9163459]
[1721205732901,0.00175695,65375.0,65374.0,0.9173459]
[1721205733078,0.00175695,65375.0,65374.0,0.9163459]
[1721205733484,0.00175695,65375.0,65374.0,0.9173459]
[1721205733682,0.00175695,65375.0,65374.0,0.1525159]
[1721205733915,0.00175695,65375.0,65374.0,0.0106159]
[1721205733916,1.07250095,65375.0,65374.0,0.0106159]
[1721205734161,1.07250095,65375.0,65374.0,0.0020006]
[1721205734385,1.47842795,65375.0,65374.0,0.0010006]
[1721205734714,1.47842795,65375.0,65374.0,0.0020006]
[1721205734953,1.17250095,65375.0,65374.0,0.0020006]
[1721205735179,0.86657395,65375.0,65374.0,0.0010006]
[1721205735626,1.17250095,65375.0,65374.0,0.0010006]
[1721205736065,1.17250095,65375.0,65374.0,6e-07]
[1721205736066,1.47842795,65375.0,65374.0,6e-07]
[1721205736296,1.87168797,65375.0,65374.0,6e-07]
[1721205736500,2.00922111,65375.0,65374.0,6e-07]
[1721205736724,2.02106549,65375.0,65374.0,6e-07]
[1721205736934,1.99822643,65375.0,65374.0,6e-07]
[1721205737134,2.02936321,65375.0,65374.0,6e-07]
[1721205737333,2.60453688,65375.0,65374.0,6e-07]
[1721205737708,2.55012538,65375.0,65374.0,6e-07]
[1721205737920,2.63634728,65375.0,65374.0,6e-07]
[1721205738127,2.8520441,65375.0,65374.0,6e-07]
[1721205738342,3.009919,65375.0,65374.0,6e-07]
[1721205738865,3.14701108,65375.0,65374.0,6e-07]
[1721205739037,3.14785108,65375.0,65374.0,6e-07]
[1721205739245,0.341373,65371.0,65370.0,6e-07]
[1721205739462,0.702996,65361.0,65360.0,0.009207]
[1721205739598,1.76258826,65361.0,65360.0,0.009207]
[1721205739798,2.32457226,65361.0,65360.0,0.009207]
[1721205740005,2.80356426,65361.0,65360.0,0.009207]
[1721205740279,2.90107499,65361.0,65360.0,0.009207]
[1721205740484,2.80532121,65361.0,65360.0,0.009207]
[1721205740622,2.89665562,65361.0,65360.0,0.009207]
[1721205741018,2.80532121,65361.0,65360.0,0.009207]
[1721205741227,2.80532121,65361.0,65339.0,0.0777]
[1721205741228,0.55,65351.0,65339.0,0.0777]
[1721205741486,0.55,65351.0,65331.0,0.009307]
[1721205741487,1.377346,65343.0,65336.0,0.0624]
[1721205741896,1.46481299,65343.0,65336.0,0.0624]
[1721205742091,1.56481299,65343.0,65336.0,0.0624]
[1721205742492,1.56481299,65343.0,65331.0,0.009307]
[1721205742493,1.64441299,65343.0,65331.0,0.009307]
[1721205742642,1.47910295,65343.0,65331.0,0.009307]
[1721205743049,1.56730549,65343.0,65331.0,0.009307]
[1721205743267,2.17945949,65343.0,65331.0,0.009307]
[1721205743430,2.34935949,65343.0,65331.0,0.009307]
[1721205743634,2.83535949,65343.0,65331.0,0.009307]
[1721205743840,2.84935949,65343.0,65331.0,0.009307]
[1721205744162,2.86335949,65343.0,65331.0,0.009307]
[1721205744361,2.92618309,65343.0,65331.0,0.009307]
[1721205745012,2.84850794,65343.0,65331.0,0.009307]
[1721205745121,2.91218301,65343.0,65342.0,1e-06]
[1721205745330,2.91218301,65343.0,65309.0,0.0146526]
[1721205745331,0.153115,65310.0,65309.0,0.0146526]
[1721205745530,0.559346,65310.0,65309.0,0.0146526]
[1721205745788,1.171808,65310.0,65309.0,0.0146526]
[1721205746016,1.478039,65310.0,65309.0,0.0146526]
[1721205746679,1.47979595,65310.0,65309.0,0.0146526]
[1721205747269,1.50779595,65310.0,65309.0,0.0146526]
[1721205747546,2.15625795,65310.0,65309.0,0.0146526]
[1721205747744,1.121826,65309.0,65308.0,6e-07]
[1721205747954,1.61788949,65309.0,65308.0,6e-07]
[1721205748164,2.1578453,65309.0,65308.0,6e-07]
[1721205748378,2.05281895,65309.0,65308.0,6e-07]
[1721205749032,1.55281895,65309.0,65308.0,6e-07]
[1721205749224,2.35905495,65309.0,65308.0,6e-07]
[1721205749433,1.85905495,65309.0,65308.0,6e-07]
[1721205749582,1.52237169,65309.0,65308.0,6e-07]
[1721205749759,1.47981895,65309.0,65308.0,6e-07]
[1721205749968,1.49381895,65309.0,65308.0,6e-07]
[1721205750172,1.80005495,65309.0,65308.0,6e-07]
[1721205750380,1.50281895,65309.0,65308.0,6e-07]
[1721205750778,1.51681895,65309.0,65308.0,6e-07]
[1721205751149,1.53081895,65309.0,65308.0,6e-07]
[1721205751465,1.58081895,65309.0,65308.0,6e-07]
[1721205751670,1.90105495,65309.0,65308.0,6e-07]
[1721205752275,1.88705495,65309.0,65308.0,6e-07]
[1721205752691,1.90105495,65309.0,65308.0,6e-07]
[1721205753701,1.88705495,65309.0,65308.0,6e-07]
[1721205753901,1.87305495,65309.0,65308.0,6e-07]
[1721205754121,1.96495495,65309.0,65308.0,6e-07]
[1721205754615,2.27119095,65309.0,65308.0,6e-07]
[1721205754742,2.28519095,65309.0,65308.0,6e-07]
[1721205754959,2.25719095,65309.0,65308.0,6e-07]
[1721205755473,2.35089095,65309.0,65308.0,6e-07]
[1721205755671,2.33689095,65309.0,65308.0,6e-07]
[1721205756074,2.30889095,65309.0,65308.0,6e-07]
[1721205756476,2.60199095,65309.0,65308.0,6e-07]
[1721205756736,2.64329433,65309.0,65308.0,6e-07]
[1721205756884,2.62929433,65309.0,65308.0,6e-07]
[1721205757088,2.65729433,65309.0,65308.0,6e-07]
[1721205757405,2.36419433,65309.0,65308.0,6e-07]
[1721205757664,2.33689095,65309.0,65308.0,6e-07]
[1721205758309,2.20672233,65309.0,65308.0,6e-07]
[1721205758512,1.55141895,65309.0,65308.0,6e-07]
[1721205758718,1.37981895,65309.0,65308.0,6e-07]
[1721205759129,1.89381895,65309.0,65308.0,6e-07]
[1721205759348,1.40781895,65309.0,65308.0,6e-07]
[1721205760339,1.39381895,65309.0,65308.0,6e-07]
[1721205760578,1.75005495,65309.0,65308.0,6e-07]
[1721205760799,1.75005495,65309.0,65263.0,0.05]
[1721205760800,1.072368,65276.0,65275.0,0.00277097]
[1721205760994,1.072368,65276.0,65265.0,0.1399]
[1721205760995,0.459657,65266.0,65265.0,0.1399]
[1721205761184,1.072533,65266.0,65265.0,0.1399]
[1721205761468,0.153219,65266.0,65265.0,0.1399]
[1721205761896,0.766095,65266.0,65265.0,0.1399]
[1721205762035,1.072533,65266.0,65265.0,0.1399]
[1721205762436,1.07428995,65266.0,65265.0,0.1399]
[1721205763069,0.00175695,65266.0,65265.0,0.1399]
[1721205763244,0.00175695,65266.0,65265.0,0.293121]
[1721205763615,0.153195,65276.0,65270.0,0.1423]
[1721205763833,0.153195,65276.0,65260.0,0.00306432]
[1721205763834,0.3063,65296.0,65264.0,0.05]
[1721205764002,0.153178,65284.0,65277.0,0.1423]
[1721205764286,0.7589,65300.0,65282.0,0.15318]
[1721205764287,0.306311,65293.0,65282.0,0.15318]
[1721205764470,0.4798,65300.0,65285.0,0.1361]
[1721205764471,0.306307,65294.0,65285.0,0.1361]
[1721205764676,0.0490337,65291.0,65285.0,0.289273]
[1721205764877,0.0490337,65291.0,65286.0,0.153169]
[1721205765015,0.30631,65294.0,65285.0,0.1361]
[1721205765216,0.4798,65300.0,65286.0,0.1447]
[1721205765425,0.306296,65297.0,65289.0,0.153164]
[1721205765628,0.306296,65297.0,65287.0,0.366937]
[1721205765629,0.153153,65294.0,65290.0,0.0794]
[1721205765837,0.153153,65294.0,65291.0,0.0606]
[1721205766056,0.153158,65292.0,65291.0,0.0606]
[1721205766468,0.253158,65292.0,65291.0,0.0606]
[1721205767085,0.1,65292.0,65291.0,0.0606]
[1721205767472,0.1,65292.0,65291.0,0.21376]
[1721205767692,0.1,65296.0,65291.0,0.0606]
[1721205767945,0.306176,65322.0,65291.0,0.0606]
[1721205767946,0.005,65292.0,65291.0,0.82946214]
[1721205768186,0.005,65292.0,65291.0,1.211719]
[1721205768836,0.4798,65300.0,65299.0,0.0755]
[1721205769072,0.306251,65306.0,65299.0,0.1371]
[1721205769289,0.306242,65308.0,65299.0,0.1371]
[1721205769492,0.4798,65311.0,65308.0,0.1453]
[1721205770028,0.632913,65311.0,65308.0,0.1453]
[1721205771113,0.637913,65311.0,65308.0,0.1453]
[1721205771336,0.1,65310.0,65308.0,0.1453]
[1721205771825,0.639913,65311.0,65310.0,0.153115]
[1721205771826,0.4868,65311.0,65310.0,0.153115]
[1721205772041,0.007,65311.0,65310.0,0.908377]
[1721205772303,0.4798,65321.0,65301.0,0.30627]
[1721205772304,0.4798,65321.0,65320.0,0.1437]
[1721205772525,0.0490912,65322.0,65320.0,0.1437]
[1721205772758,0.061343,65328.0,65321.0,0.153088]
[1721205773008,0.061343,65328.0,65320.0,0.1437]
[1721205773241,0.4798,65332.0,65320.0,0.1437]
[1721205773498,0.4798,65332.0,65323.0,0.153083]
[1721205773499,0.153069,65330.0,65323.0,0.153083]
[1721205773735,0.153069,65330.0,65324.0,0.153082]
[1721205773904,0.785928,65332.0,65326.0,0.153077]
[1721205773905,0.4798,65332.0,65326.0,0.153077]
[1721205774110,0.4798,65332.0,65322.0,0.306174]
[1721205774330,0.4798,65332.0,65325.0,0.153079]
[1721205774531,0.4798,65332.0,65326.0,0.153077]
[1721205774950,0.4798,65332.0,65320.0,0.449884]
[1721205774951,0.632865,65332.0,65325.0,0.153078]
[1721205775195,0.632866,65332.0,65324.0,0.153082]
[1721205775405,0.153073,65328.0,65322.0,0.153087]
[1721205775571,0.1,65327.0,65322.0,0.153087]
[1721205775778,0.1,65327.0,65320.0,0.1437]
[1721205776159,0.15308,65326.0,65320.0,0.1437]
[1721205776357,0.153082,65325.0,65320.0,0.1437]
[1721205776556,0.406152,65327.0,65323.0,0.001]
[1721205776557,0.153083,65324.0,65323.0,0.001]
[1721205776828,1e-08,65324.0,65323.0,0.001]
[1721205777030,0.15308301,65324.0,65320.0,0.1437]
[1721205777228,0.15308301,65324.0,65321.0,0.00277097]
[1721205777956,1e-08,65324.0,65321.0,0.00277097]
[1721205778325,0.00300001,65324.0,65321.0,0.00277097]
[1721205778545,0.153085,65323.0,65321.0,0.00277097]
[1721205778764,0.00300001,65324.0,65321.0,0.00277097]
[1721205779126,0.00300001,65324.0,65323.0,0.153085]
[1721205779646,0.00300001,65324.0,65321.0,0.153088]
[1721205779647,1e-08,65324.0,65321.0,0.153088]
[1721205779788,1e-08,65324.0,65322.0,0.00277097]
[1721205780006,0.00200001,65324.0,65322.0,0.00277097]
[1721205780492,1e-08,65324.0,65322.0,0.00277097]
[1721205780940,0.00200001,65324.0,65322.0,0.00277097]
[1721205781204,0.153087,65322.0,65321.0,0.00277097]
[1721205781585,0.153087,65322.0,65305.0,0.00277097]
[1721205781586,0.153112,65312.0,65305.0,0.00277097]
[1721205781710,0.153104,65315.0,65306.0,0.153124]
[1721205781914,0.306199,65317.0,65307.0,0.00277097]
[1721205782136,0.1,65322.0,65307.0,0.00277097]
[1721205782137,0.153107,65314.0,65307.0,0.00277097]
[1721205782338,0.306203,65316.0,65305.0,0.00277097]
[1721205782339,0.153106,65315.0,65305.0,0.00277097]
[1721205782548,0.306194,65319.0,65307.0,0.00277097]
[1721205782867,0.306194,65319.0,65304.0,0.0641]
[1721205782868,0.005,65312.0,65311.0,0.08197097]
[1721205783087,0.005,65312.0,65311.0,0.0792]
[1721205783308,0.253097,65318.0,65311.0,0.0792]
[1721205783483,0.007,65314.0,65312.0,0.00277097]
[1721205783685,0.007,65314.0,65313.0,0.519425]
[1721205783890,0.35580971,65320.0,65313.0,0.0601]
[1721205784090,0.153099,65317.0,65314.0,0.00277097]
[1721205784360,0.04962071,65320.0,65316.0,0.153101]
[1721205784578,0.25308301,65324.0,65317.0,0.00277097]
[1721205784579,0.15308301,65324.0,65317.0,0.00277097]
[1721205784778,0.406172,65323.0,65316.0,0.00277097]
[1721205784981,0.153094,65320.0,65314.0,0.00277097]
[1721205785343,0.306182,65321.0,65314.0,0.00277097]
[1721205785344,0.459312,65315.0,65314.0,0.00277097]
[1721205785544,0.306208,65315.0,65308.0,0.00277097]
[1721205785745,0.153109,65313.0,65308.0,0.00277097]
[1721205785948,0.459354,65309.0,65308.0,0.00277097]
[1721205786170,0.2791,65320.0,65302.0,0.00277097]
[1721205786171,0.15312,65308.0,65302.0,0.00277097]
[1721205786373,0.15312,65308.0,65303.0,0.153131]
[1721205786580,0.1,65322.0,65306.0,0.306247]
[1721205786786,0.003,65315.0,65310.0,0.153115]
[1721205787024,0.1,65316.0,65311.0,0.15588297]
[1721205787177,0.1,65316.0,65311.0,0.00277097]
[1721205787636,0.1,65316.0,65311.0,0.15588197]
[1721205787814,0.1,65316.0,65311.0,0.00277097]
[1721205788013,0.153109,65313.0,65307.0,0.153122]
[1721205788232,0.153109,65313.0,65308.0,0.00277097]
[1721205788466,0.306212,65315.0,65309.0,0.153117]
[1721205788467,0.153105,65315.0,65309.0,0.153117]
[1721205788761,0.153105,65315.0,65310.0,0.00277097]
[1721205788948,0.306208,65315.0,65310.0,0.00277097]
[1721205789147,0.153112,65312.0,65307.0,0.00277097]
[1721205789553,0.153108,65314.0,65307.0,0.30901197]
[1721205789768,0.309208,65315.0,65308.0,0.00851731]
[1721205789769,0.153109,65313.0,65308.0,0.00851731]
[1721205789911,0.153116,65310.0,65308.0,0.00851731]
[1721205790099,0.153116,65310.0,65309.0,0.00277097]
[1721205790299,0.153116,65310.0,65309.0,0.0085125]
[1721205790503,0.153118,65309.0,65305.0,0.00277097]
[1721205790708,0.45935,65310.0,65309.0,0.0085125]
[1721205790906,0.45935,65310.0,65304.0,0.0751]
[1721205790907,0.153127,65305.0,65304.0,0.0751]
[1721205791333,0.153127,65305.0,65304.0,0.00853655]
[1721205791334,0.765637,65305.0,65304.0,0.00853655]
[1721205791735,0.459403,65302.0,65301.0,0.0645]
[1721205792266,0.15314,65300.0,65297.0,0.0766]
[1721205792507,0.306255,65305.0,65298.0,0.00277097]
[1721205792654,0.153133,65303.0,65298.0,0.16447939]
[1721205793642,0.306262,65304.0,65298.0,0.01133639]